[Event "Early-Titled-Tuesday-Blitz-February-06-2024"]
[Site "Chess.com"]
[Date "2024.02.06"]
[Round "5"]
[White "Doublekk14"]
[Black "threemind"]
[Result "1-0"]
[WhiteElo "2302"]
[BlackElo "2128"]
[TimeControl "180+1"]
[EndTime "8:56:05 PST"]
[Termination "Doublekk14 won by resignation"]

1. c4 {[%clk 0:03:00.9]} 1... Nf6 {[%clk 0:02:55.3]} 2. Nc3 {[%clk 0:03:00.1]}
2... g6 {[%clk 0:02:56.2]} 3. e3 {[%clk 0:02:59]} 3... Bg7 {[%clk 0:02:55.8]} 4.
Nf3 {[%clk 0:02:59.5]} 4... O-O {[%clk 0:02:56.6]} 5. d4 {[%clk 0:02:59.7]} 5...
c6 {[%clk 0:02:56.6]} 6. Be2 {[%clk 0:02:58.6]} 6... d5 {[%clk 0:02:57.5]} 7.
O-O {[%clk 0:02:57.1]} 7... Bg4 {[%clk 0:02:57.4]} 8. b3 {[%clk 0:02:53.1]} 8...
Nbd7 {[%clk 0:02:56.9]} 9. h3 {[%clk 0:02:53]} 9... Bxf3 {[%clk 0:02:57.3]} 10.
Bxf3 {[%clk 0:02:52.8]} 10... e5 {[%clk 0:02:57.3]} 11. cxd5 {[%clk 0:02:46.5]}
11... Nxd5 {[%clk 0:02:56.7]} 12. Nxd5 {[%clk 0:02:46.1]} 12... cxd5 {[%clk
0:02:55.9]} 13. Bxd5 {[%clk 0:02:45.8]} 13... exd4 {[%clk 0:02:55.7]} 14. Bxb7
{[%clk 0:02:26.1]} 14... Rb8 {[%clk 0:02:54]} 15. Bf3 {[%clk 0:02:12.3]} 15...
dxe3 {[%clk 0:02:52.8]} 16. Bxe3 {[%clk 0:02:12.1]} 16... Bxa1 {[%clk
0:02:51.1]} 17. Qxa1 {[%clk 0:02:12.2]} 17... Re8 {[%clk 0:02:50.3]} 18. Bxa7
{[%clk 0:02:10.2]} 18... Rb5 {[%clk 0:02:48]} 19. Rd1 {[%clk 0:02:07]} 19... Qc7
{[%clk 0:02:42.8]} 20. Be3 {[%clk 0:02:05.6]} 20... Ne5 {[%clk 0:02:42]} 21. Bd5
{[%clk 0:01:57.1]} 21... Rd8 {[%clk 0:02:39.2]} 22. Be4 {[%clk 0:01:38.3]} 22...
Rxd1+ {[%clk 0:02:38.2]} 23. Qxd1 {[%clk 0:01:37.8]} 23... Ra5 {[%clk
0:02:39.1]} 24. a4 {[%clk 0:01:27.4]} 24... Ra6 {[%clk 0:02:36.4]} 25. Qa1
{[%clk 0:01:17.7]} 25... Nd7 {[%clk 0:02:23.9]} 26. Bh6 {[%clk 0:01:14]} 26...
Qe5 {[%clk 0:02:19.6]} 27. Qxe5 {[%clk 0:01:13.4]} 27... Nxe5 {[%clk 0:02:20.5]}
28. Bf4 {[%clk 0:01:08.7]} 28... Nd7 {[%clk 0:02:17.6]} 29. Be3 {[%clk
0:00:59.8]} 29... Nf6 {[%clk 0:02:15.2]} 30. Bd3 {[%clk 0:00:57.7]} 30... Ra5
{[%clk 0:02:15.6]} 31. Bc4 {[%clk 0:00:57.5]} 31... Ne4 {[%clk 0:02:14.9]} 32.
Kf1 {[%clk 0:00:54.6]} 32... Nd6 {[%clk 0:02:13.9]} 33. Bd3 {[%clk 0:00:46.4]}
33... Nf5 {[%clk 0:02:12.2]} 34. Bxf5 {[%clk 0:00:42.4]} 34... Rxf5 {[%clk
0:02:13.1]} 35. b4 {[%clk 0:00:41]} 35... Rd5 {[%clk 0:02:12.7]} 36. a5 {[%clk
0:00:35.9]} 36... f5 {[%clk 0:02:13.2]} 37. Ke2 {[%clk 0:00:34.7]} 37... Kf7
{[%clk 0:02:12.6]} 38. a6 {[%clk 0:00:34.3]} 38... Ke6 {[%clk 0:02:10.4]} 39. a7
{[%clk 0:00:34.1]} 39... Rd8 {[%clk 0:02:10.3]} 40. Bc5 {[%clk 0:00:27.9]} 40...
Kd5 {[%clk 0:02:09.8]} 41. Kf3 {[%clk 0:00:25.3]} 41... Kc6 {[%clk 0:02:10]} 42.
Kf4 {[%clk 0:00:25.1]} 42... Kb7 {[%clk 0:02:09]} 43. Kg5 {[%clk 0:00:24.9]}
43... Rd7 {[%clk 0:02:09.3]} 44. f4 {[%clk 0:00:22.8]} 44... Rd2 {[%clk
0:02:03.8]} 45. g4 {[%clk 0:00:22.6]} 45... fxg4 {[%clk 0:02:01.7]} 46. hxg4
{[%clk 0:00:22.5]} 46... Rd5+ {[%clk 0:02:00.2]} 47. f5 {[%clk 0:00:20.7]} 47...
Ka8 {[%clk 0:01:44]} 48. Kf4 {[%clk 0:00:14.6]} 48... gxf5 {[%clk 0:01:40.6]}
49. gxf5 {[%clk 0:00:14]} 49... h5 {[%clk 0:01:41.3]} 50. f6 {[%clk 0:00:13.6]}
50... Rd1 {[%clk 0:01:32.1]} 51. Kg5 {[%clk 0:00:09.7]} 51... Rf1 {[%clk
0:01:30]} 52. Kg6 {[%clk 0:00:07.8]} 52... h4 {[%clk 0:01:29.2]} 53. f7 {[%clk
0:00:07.7]} 53... h3 {[%clk 0:01:27.4]} 54. Bd6 {[%clk 0:00:07.6]} 54... Kxa7
{[%clk 0:01:24.1]} 55. Kg7 {[%clk 0:00:07.1]} 55... Rg1+ {[%clk 0:01:22]} 56.
Kh7 {[%clk 0:00:06.2]} 56... h2 {[%clk 0:01:03.3]} 57. Bxh2 {[%clk 0:00:05.6]}
57... Rf1 {[%clk 0:01:03.7]} 58. Kg8 {[%clk 0:00:05]} 58... Kb6 {[%clk
0:01:02.6]} 59. Bd6 {[%clk 0:00:04.9]} 59... Kc6 {[%clk 0:01:02.7]} 60. f8=Q
{[%clk 0:00:03.2]} 60... Rxf8+ {[%clk 0:01:03.4]} 61. Bxf8 {[%clk 0:00:03.3]}
61... Kb5 {[%clk 0:01:04.3]} 62. Bc5 {[%clk 0:00:04]} 62... Kc6 {[%clk
0:01:04.5]} 63. Kf7 {[%clk 0:00:04.9]} 63... Kb7 {[%clk 0:01:05.4]} 64. Ke6
{[%clk 0:00:05.7]} 64... Kc6 {[%clk 0:01:06.3]} 65. Ke5 {[%clk 0:00:04.5]} 65...
Kb7 {[%clk 0:01:07.2]} 66. Kd4 {[%clk 0:00:05.3]} 66... Ka6 {[%clk 0:01:07.3]}
67. Kc4 {[%clk 0:00:06.2]} 67... Kb7 {[%clk 0:01:07.7]} 68. b5 {[%clk
0:00:07.1]} 68... Kb8 {[%clk 0:01:07.8]} 69. Kd5 {[%clk 0:00:08]} 69... Kb7
{[%clk 0:01:08.6]} 70. Kd6 {[%clk 0:00:08.4]} 70... Kc8 {[%clk 0:01:09.1]} 71.
Kc6 {[%clk 0:00:08.9]} 71... Kb8 {[%clk 0:01:09.5]} 72. b6 {[%clk 0:00:08.8]}
72... Ka8 {[%clk 0:01:09.3]} 73. b7+ {[%clk 0:00:08.7]} 73... Kb8 {[%clk
0:01:10.1]} 74. Bd6+ {[%clk 0:00:09]} 74... Ka7 {[%clk 0:01:11]} 1-0

[Event "Early-Titled-Tuesday-Blitz-February-06-2024"]
[Site "Chess.com"]
[Date "2024.02.06"]
[Round "5"]
[White "kibromNNN"]
[Black "Roedor"]
[Result "0-1"]
[WhiteElo "1776"]
[BlackElo "2337"]
[TimeControl "180+1"]
[EndTime "8:56:07 PST"]
[Termination "Roedor won by resignation"]

1. d4 {[%clk 0:03:00]} 1... Nf6 {[%clk 0:01:35]} 2. c4 {[%clk 0:02:59]} 2... g6
{[%clk 0:01:34.9]} 3. Nc3 {[%clk 0:02:57.3]} 3... d5 {[%clk 0:01:33.6]} 4. cxd5
{[%clk 0:02:56.9]} 4... Nxd5 {[%clk 0:01:34.5]} 5. e4 {[%clk 0:02:56.1]} 5...
Nxc3 {[%clk 0:01:34.9]} 6. bxc3 {[%clk 0:02:56.8]} 6... Bg7 {[%clk 0:01:35.4]}
7. Bc4 {[%clk 0:02:55.9]} 7... O-O {[%clk 0:01:35.1]} 8. Ne2 {[%clk 0:02:56.2]}
8... c5 {[%clk 0:01:35.1]} 9. O-O {[%clk 0:02:53.6]} 9... Nc6 {[%clk 0:01:35.2]}
10. Be3 {[%clk 0:02:51.9]} 10... b6 {[%clk 0:01:34.2]} 11. Rc1 {[%clk
0:02:49.5]} 11... Qc7 {[%clk 0:01:33]} 12. f4 {[%clk 0:02:41.6]} 12... e6 {[%clk
0:01:29.2]} 13. Qd2 {[%clk 0:02:36.7]} 13... Bb7 {[%clk 0:01:25.4]} 14. f5
{[%clk 0:02:19.5]} 14... exf5 {[%clk 0:01:20.2]} 15. exf5 {[%clk 0:02:18.4]}
15... Na5 {[%clk 0:00:59.9]} 16. Bd3 {[%clk 0:02:10.6]} 16... Rfe8 {[%clk
0:00:50.1]} 17. f6 {[%clk 0:02:04.5]} 17... Bf8 {[%clk 0:00:49.7]} 18. Bf4
{[%clk 0:02:00.8]} 18... Qc6 {[%clk 0:00:48.1]} 19. Rf2 {[%clk 0:01:51.8]} 19...
Qxf6 {[%clk 0:00:27.9]} 20. Be5 {[%clk 0:01:50]} 20... Qh4 {[%clk 0:00:19.3]}
21. Bf6 {[%clk 0:01:40.2]} 21... Qg4 {[%clk 0:00:13.9]} 22. h3 {[%clk
0:01:35.2]} 22... Qd7 {[%clk 0:00:12.3]} 23. Rcf1 {[%clk 0:01:23.6]} 23... Rac8
{[%clk 0:00:08.6]} 24. Be5 {[%clk 0:01:21.8]} 24... c4 {[%clk 0:00:07.1]} 25.
Bc2 {[%clk 0:01:12.5]} 25... Rxe5 {[%clk 0:00:06.2]} 26. Rxf7 {[%clk 0:01:03.6]}
26... Re7 {[%clk 0:00:06.4]} 27. R7f2 {[%clk 0:00:43.4]} 27... Rce8 {[%clk
0:00:05.9]} 28. Nf4 {[%clk 0:00:40.2]} 28... Rf7 {[%clk 0:00:05.5]} 29. Qd1
{[%clk 0:00:31.4]} 29... Bd6 {[%clk 0:00:05.1]} 30. Ba4 {[%clk 0:00:25]} 30...
Bc6 {[%clk 0:00:01.7]} 31. Bxc6 {[%clk 0:00:23.9]} 31... Nxc6 {[%clk 0:00:02.6]}
32. Nd5 {[%clk 0:00:21.1]} 32... Rxf2 {[%clk 0:00:02.4]} 33. Rxf2 {[%clk
0:00:21]} 33... Be7 {[%clk 0:00:02.7]} 34. Re2 {[%clk 0:00:17.8]} 34... Qxd5
{[%clk 0:00:02.6]} 35. Rxe7 {[%clk 0:00:15.6]} 35... Rxe7 {[%clk 0:00:02.7]} 36.
Qf3 {[%clk 0:00:14.6]} 36... Qxf3 {[%clk 0:00:02.8]} 37. gxf3 {[%clk 0:00:14.9]}
37... Re3 {[%clk 0:00:03.7]} 38. Kf2 {[%clk 0:00:14.9]} 38... Rxc3 {[%clk
0:00:04]} 39. Kg3 {[%clk 0:00:15.1]} 39... Ne7 {[%clk 0:00:04.9]} 40. Kf4 {[%clk
0:00:15]} 40... Rd3 {[%clk 0:00:05.8]} 41. Kg5 {[%clk 0:00:14.5]} 41... Nd5
{[%clk 0:00:06]} 42. Kg4 {[%clk 0:00:10.2]} 42... c3 {[%clk 0:00:06.9]} 43. Kg3
{[%clk 0:00:08.4]} 43... c2 {[%clk 0:00:07.8]} 0-1

[Event "Early-Titled-Tuesday-Blitz-February-06-2024"]
[Site "Chess.com"]
[Date "2024.02.06"]
[Round "5"]
[White "bazar-wokzal"]
[Black "ilqar_74"]
[Result "1-0"]
[WhiteElo "2620"]
[BlackElo "2801"]
[TimeControl "180+1"]
[EndTime "8:56:08 PST"]
[Termination "bazar-wokzal won on time"]

1. e4 {[%clk 0:03:00.9]} 1... c5 {[%clk 0:02:59.4]} 2. c3 {[%clk 0:03:00.5]}
2... d5 {[%clk 0:02:58.8]} 3. exd5 {[%clk 0:03:00.6]} 3... Nf6 {[%clk
0:02:58.5]} 4. Bb5+ {[%clk 0:02:59.8]} 4... Bd7 {[%clk 0:02:58.6]} 5. Bxd7+
{[%clk 0:03:00]} 5... Qxd7 {[%clk 0:02:58.1]} 6. c4 {[%clk 0:02:59.9]} 6... e6
{[%clk 0:02:58.2]} 7. Qe2 {[%clk 0:02:59.9]} 7... Be7 {[%clk 0:02:57.4]} 8. dxe6
{[%clk 0:02:59.5]} 8... fxe6 {[%clk 0:02:58]} 9. Nf3 {[%clk 0:02:59.8]} 9... Nc6
{[%clk 0:02:58.6]} 10. O-O {[%clk 0:02:59.6]} 10... O-O {[%clk 0:02:59.2]} 11.
Re1 {[%clk 0:02:55.7]} 11... e5 {[%clk 0:02:49.4]} 12. Nc3 {[%clk 0:02:54.4]}
12... Bd6 {[%clk 0:02:47.5]} 13. d3 {[%clk 0:02:54.4]} 13... Rae8 {[%clk
0:02:46.5]} 14. Bg5 {[%clk 0:02:53.4]} 14... Ng4 {[%clk 0:02:45.7]} 15. h3
{[%clk 0:02:49.8]} 15... Nf6 {[%clk 0:02:20.3]} 16. Ne4 {[%clk 0:02:40.1]} 16...
Nh5 {[%clk 0:02:13.3]} 17. Nxd6 {[%clk 0:02:21.3]} 17... Qxd6 {[%clk 0:02:11.3]}
18. Nd2 {[%clk 0:02:21.3]} 18... Nf4 {[%clk 0:02:03.8]} 19. Bxf4 {[%clk
0:02:20.6]} 19... Rxf4 {[%clk 0:01:51.2]} 20. Ne4 {[%clk 0:01:54.6]} 20... Qf8
{[%clk 0:01:45.8]} 21. Rad1 {[%clk 0:01:43.1]} 21... Nd4 {[%clk 0:01:43.9]} 22.
Qd2 {[%clk 0:01:41.3]} 22... b6 {[%clk 0:01:33.3]} 23. a3 {[%clk 0:01:39]} 23...
Qf5 {[%clk 0:01:27.6]} 24. b4 {[%clk 0:01:35.9]} 24... Qg6 {[%clk 0:01:21.8]}
25. Kh1 {[%clk 0:01:24.5]} 25... Ref8 {[%clk 0:01:09.6]} 26. bxc5 {[%clk
0:01:14.7]} 26... bxc5 {[%clk 0:01:06.2]} 27. Rb1 {[%clk 0:01:05.9]} 27... Qh5
{[%clk 0:01:01.3]} 28. Rb7 {[%clk 0:00:46.9]} 28... Rf3 {[%clk 0:00:44]} 29. Re3
{[%clk 0:00:20.6]} 29... Rxe3 {[%clk 0:00:22.6]} 30. Qxe3 {[%clk 0:00:20.5]}
30... Rf3 {[%clk 0:00:15.9]} 31. Rb8+ {[%clk 0:00:20]} 31... Rf8 {[%clk
0:00:12.7]} 32. Rxf8+ {[%clk 0:00:19.3]} 32... Kxf8 {[%clk 0:00:13.6]} 33. Nxc5
{[%clk 0:00:19.3]} 33... Qd1+ {[%clk 0:00:14]} 34. Kh2 {[%clk 0:00:19.3]} 34...
Ne2 {[%clk 0:00:14.6]} 35. f3 {[%clk 0:00:17]} 35... Qf1 {[%clk 0:00:10]} 36.
Nd7+ {[%clk 0:00:16.7]} 36... Kg8 {[%clk 0:00:08.9]} 37. Nxe5 {[%clk 0:00:17.6]}
37... h6 {[%clk 0:00:08.4]} 38. Ng6 {[%clk 0:00:17]} 38... Kh7 {[%clk
0:00:08.4]} 39. Nf4 {[%clk 0:00:17.1]} 39... Nxf4 {[%clk 0:00:06.4]} 40. Qxf4
{[%clk 0:00:17.5]} 40... Qa1 {[%clk 0:00:06.7]} 41. Qe4+ {[%clk 0:00:17.6]}
41... Kh8 {[%clk 0:00:06.9]} 42. c5 {[%clk 0:00:17.8]} 42... Qxa3 {[%clk
0:00:06.8]} 43. c6 {[%clk 0:00:18.2]} 43... Qd6+ {[%clk 0:00:07.5]} 44. f4
{[%clk 0:00:17.9]} 44... a5 {[%clk 0:00:07.5]} 45. Qc4 {[%clk 0:00:17.4]} 45...
Qc7 {[%clk 0:00:04.8]} 46. Kh1 {[%clk 0:00:16.5]} 46... Kh7 {[%clk 0:00:03.6]}
47. d4 {[%clk 0:00:16.5]} 47... a4 {[%clk 0:00:01.5]} 48. Qxa4 {[%clk
0:00:15.5]} 48... Qxf4 {[%clk 0:00:02]} 49. Qc2+ {[%clk 0:00:15]} 49... g6
{[%clk 0:00:02.4]} 50. c7 {[%clk 0:00:14.8]} 50... Qf1+ {[%clk 0:00:03]} 51. Kh2
{[%clk 0:00:15.4]} 1-0

[Event "Early-Titled-Tuesday-Blitz-February-06-2024"]
[Site "Chess.com"]
[Date "2024.02.06"]
[Round "5"]
[White "RobertoJBM"]
[Black "Fandorine"]
[Result "0-1"]
[WhiteElo "2815"]
[BlackElo "2968"]
[TimeControl "180+1"]
[EndTime "8:56:10 PST"]
[Termination "Fandorine won by resignation"]

1. d4 {[%clk 0:03:00.9]} 1... Nf6 {[%clk 0:02:59.8]} 2. Nf3 {[%clk 0:03:00.1]}
2... d5 {[%clk 0:02:59.7]} 3. e3 {[%clk 0:03:00]} 3... g6 {[%clk 0:02:59.1]} 4.
Be2 {[%clk 0:02:59.5]} 4... Bg7 {[%clk 0:02:59.2]} 5. O-O {[%clk 0:03:00.4]}
5... O-O {[%clk 0:02:59.5]} 6. c4 {[%clk 0:02:56.5]} 6... c6 {[%clk 0:02:59.4]}
7. b3 {[%clk 0:02:56.2]} 7... a6 {[%clk 0:02:54.6]} 8. Bb2 {[%clk 0:02:43.8]}
8... b5 {[%clk 0:02:53.8]} 9. a4 {[%clk 0:02:37.9]} 9... bxc4 {[%clk 0:02:51.4]}
10. bxc4 {[%clk 0:02:37.3]} 10... Bg4 {[%clk 0:02:52]} 11. Nbd2 {[%clk 0:02:34]}
11... Nbd7 {[%clk 0:02:49.3]} 12. Qc2 {[%clk 0:02:33]} 12... a5 {[%clk
0:02:46.6]} 13. Rfc1 {[%clk 0:02:25.9]} 13... Rb8 {[%clk 0:02:34.3]} 14. Bc3
{[%clk 0:02:23.5]} 14... Bf5 {[%clk 0:02:22.1]} 15. Bd3 {[%clk 0:02:22.6]} 15...
e6 {[%clk 0:02:16.1]} 16. Bxf5 {[%clk 0:02:18.7]} 16... exf5 {[%clk 0:02:12.7]}
17. Rab1 {[%clk 0:02:15.8]} 17... Rxb1 {[%clk 0:02:07.2]} 18. Rxb1 {[%clk
0:02:14.6]} 18... Ne4 {[%clk 0:02:08.1]} 19. Bb2 {[%clk 0:02:00.8]} 19... Qa8
{[%clk 0:01:53.6]} 20. Ba3 {[%clk 0:01:57.7]} 20... Rb8 {[%clk 0:01:49.2]} 21.
cxd5 {[%clk 0:01:45]} 21... cxd5 {[%clk 0:01:44.3]} 22. g3 {[%clk 0:01:39.3]}
22... Rc8 {[%clk 0:01:22.2]} 23. Qb2 {[%clk 0:01:27.9]} 23... Nc3 {[%clk
0:01:11.1]} 24. Ra1 {[%clk 0:01:28.2]} 24... Qc6 {[%clk 0:00:56.4]} 25. Be7
{[%clk 0:01:18.1]} 25... Nxa4 {[%clk 0:00:50.9]} 26. Qa3 {[%clk 0:01:06.7]}
26... Ndb6 {[%clk 0:00:48.9]} 27. Nb3 {[%clk 0:00:58.9]} 27... Nc3 {[%clk
0:00:29.9]} 28. Qxa5 {[%clk 0:00:44.4]} 28... Ne4 {[%clk 0:00:20.8]} 29. Rc1
{[%clk 0:00:39]} 29... Nc4 {[%clk 0:00:21.4]} 30. Qa2 {[%clk 0:00:32.5]} 30...
h6 {[%clk 0:00:22]} 31. Bb4 {[%clk 0:00:28]} 31... Qb5 {[%clk 0:00:22]} 32. Be1
{[%clk 0:00:27.6]} 32... Rb8 {[%clk 0:00:22.4]} 33. Rb1 {[%clk 0:00:24.1]} 33...
Qe8 {[%clk 0:00:19.5]} 34. Kg2 {[%clk 0:00:20.7]} 34... g5 {[%clk 0:00:19.3]}
35. Ng1 {[%clk 0:00:18]} 35... f4 {[%clk 0:00:18.3]} 36. exf4 {[%clk 0:00:13.7]}
36... gxf4 {[%clk 0:00:19.2]} 37. Nc1 {[%clk 0:00:13.9]} 37... Rc8 {[%clk
0:00:11]} 38. Nd3 {[%clk 0:00:12.7]} 38... fxg3 {[%clk 0:00:10.5]} 39. hxg3
{[%clk 0:00:13.4]} 39... Ng5 {[%clk 0:00:10.4]} 40. Qe2 {[%clk 0:00:07.8]} 40...
Bxd4 {[%clk 0:00:11]} 41. Rd1 {[%clk 0:00:06.7]} 41... Bg7 {[%clk 0:00:09.8]}
42. Nf4 {[%clk 0:00:06.2]} 42... Qe4+ {[%clk 0:00:10.4]} 43. f3 {[%clk
0:00:05.5]} 43... Qxe2+ {[%clk 0:00:09.1]} 44. Ngxe2 {[%clk 0:00:06.4]} 44...
Ne3+ {[%clk 0:00:09.8]} 45. Kg1 {[%clk 0:00:05.6]} 45... Nxd1 {[%clk 0:00:10.5]}
46. Nxd5 {[%clk 0:00:06.5]} 46... Re8 {[%clk 0:00:09.5]} 47. Kf1 {[%clk
0:00:05.1]} 47... Ne3+ {[%clk 0:00:09.7]} 48. Nxe3 {[%clk 0:00:05.6]} 48... Rxe3
{[%clk 0:00:10.6]} 49. f4 {[%clk 0:00:06.5]} 49... Nf3 {[%clk 0:00:09.8]} 50.
Bf2 {[%clk 0:00:06.9]} 50... Re4 {[%clk 0:00:09.1]} 0-1

[Event "Early-Titled-Tuesday-Blitz-February-06-2024"]
[Site "Chess.com"]
[Date "2024.02.06"]
[Round "5"]
[White "toninhojit"]
[Black "TV27"]
[Result "1-0"]
[WhiteElo "2516"]
[BlackElo "2158"]
[TimeControl "180+1"]
[EndTime "8:56:10 PST"]
[Termination "toninhojit won by resignation"]

1. d4 {[%clk 0:03:00.9]} 1... f5 {[%clk 0:02:59]} 2. Nf3 {[%clk 0:03:00]} 2...
Nf6 {[%clk 0:02:57.5]} 3. g3 {[%clk 0:03:00.9]} 3... g6 {[%clk 0:02:57.2]} 4.
Bg2 {[%clk 0:03:01.6]} 4... Bg7 {[%clk 0:02:57.3]} 5. O-O {[%clk 0:03:02.3]}
5... O-O {[%clk 0:02:56.9]} 6. b3 {[%clk 0:03:03]} 6... e6 {[%clk 0:02:43.8]} 7.
Bb2 {[%clk 0:03:03.3]} 7... d5 {[%clk 0:02:39.3]} 8. c4 {[%clk 0:03:03.4]} 8...
c6 {[%clk 0:02:38.7]} 9. Na3 {[%clk 0:03:01.5]} 9... b6 {[%clk 0:02:36.2]} 10.
Nc2 {[%clk 0:03:02.1]} 10... Nbd7 {[%clk 0:02:31.4]} 11. Nb4 {[%clk 0:02:59]}
11... Bb7 {[%clk 0:02:30.7]} 12. cxd5 {[%clk 0:02:58.7]} 12... exd5 {[%clk
0:02:24]} 13. Rc1 {[%clk 0:02:58.1]} 13... Rc8 {[%clk 0:02:21.3]} 14. Nd3 {[%clk
0:02:53.2]} 14... Ne4 {[%clk 0:02:20.7]} 15. Nfe5 {[%clk 0:02:50.3]} 15... Nxe5
{[%clk 0:02:03.5]} 16. dxe5 {[%clk 0:02:51.2]} 16... Qe7 {[%clk 0:01:59.4]} 17.
f3 {[%clk 0:02:47.8]} 17... Nc5 {[%clk 0:01:58.9]} 18. Ba3 {[%clk 0:02:44.8]}
18... Bxe5 {[%clk 0:01:54.1]} 19. Nxc5 {[%clk 0:02:23.9]} 19... bxc5 {[%clk
0:01:48.6]} 20. Bxc5 {[%clk 0:02:22.1]} 20... Bd6 {[%clk 0:01:48.1]} 21. Bd4
{[%clk 0:02:16.3]} 21... c5 {[%clk 0:01:40.5]} 22. Bb2 {[%clk 0:02:16.2]} 22...
d4 {[%clk 0:01:40.6]} 23. Qd3 {[%clk 0:02:08.7]} 23... Rfe8 {[%clk 0:01:38.4]}
24. Rfe1 {[%clk 0:02:04.1]} 24... Qe3+ {[%clk 0:01:33.4]} 25. Qxe3 {[%clk
0:01:43.7]} 25... Rxe3 {[%clk 0:01:32.2]} 26. Ba3 {[%clk 0:01:43.7]} 26... Ba6
{[%clk 0:01:29.9]} 27. Kf2 {[%clk 0:01:42.3]} 27... Rce8 {[%clk 0:01:25.6]} 28.
Bf1 {[%clk 0:01:42.1]} 28... f4 {[%clk 0:00:53.5]} 29. Bxc5 {[%clk 0:01:30.6]}
29... Bxc5 {[%clk 0:00:50.9]} 30. Rxc5 {[%clk 0:01:31.5]} 30... d3 {[%clk
0:00:50.7]} 31. Ra5 {[%clk 0:01:22.6]} 31... fxg3+ {[%clk 0:00:50]} 32. hxg3
{[%clk 0:01:22.5]} 32... dxe2 {[%clk 0:00:48]} 33. Bg2 {[%clk 0:01:21.6]} 33...
R3e6 {[%clk 0:00:42.5]} 34. f4 {[%clk 0:01:18]} 34... Rd6 {[%clk 0:00:37.6]} 35.
Bf3 {[%clk 0:01:15.1]} 35... Kf8 {[%clk 0:00:19.5]} 36. Bxe2 {[%clk 0:01:10]}
36... Bxe2 {[%clk 0:00:15.7]} 37. Rxe2 {[%clk 0:01:10.9]} 37... Rxe2+ {[%clk
0:00:15.3]} 38. Kxe2 {[%clk 0:01:11.8]} 38... Rd7 {[%clk 0:00:15.9]} 39. Ke3
{[%clk 0:01:07.4]} 39... Kg7 {[%clk 0:00:16.1]} 40. g4 {[%clk 0:01:06.1]} 40...
Kf6 {[%clk 0:00:16.3]} 41. g5+ {[%clk 0:01:06]} 41... Kg7 {[%clk 0:00:16.2]} 42.
Ra6 {[%clk 0:01:04.8]} 42... h5 {[%clk 0:00:15.8]} 43. gxh6+ {[%clk 0:01:00.3]}
43... Kh7 {[%clk 0:00:16.2]} 44. Kf3 {[%clk 0:00:59.1]} 44... Rf7 {[%clk
0:00:15.9]} 45. Kg4 {[%clk 0:00:59.2]} 45... Kxh6 {[%clk 0:00:16.1]} 46. b4
{[%clk 0:00:59.1]} 46... Rb7 {[%clk 0:00:14.4]} 47. a3 {[%clk 0:00:59.4]} 47...
Kg7 {[%clk 0:00:14.2]} 48. Rc6 {[%clk 0:00:55.5]} 48... Kf7 {[%clk 0:00:14.1]}
49. Kg5 {[%clk 0:00:53.9]} 49... Rb5+ {[%clk 0:00:13.3]} 50. Rc5 {[%clk
0:00:54.5]} 50... Rb7 {[%clk 0:00:12.5]} 51. Ra5 {[%clk 0:00:54.6]} 51... Rd7
{[%clk 0:00:10]} 52. b5 {[%clk 0:00:49]} 52... Rd5+ {[%clk 0:00:09.2]} 53. Kg4
{[%clk 0:00:49.2]} 53... Kf6 {[%clk 0:00:06.5]} 54. Ra6+ {[%clk 0:00:48.4]}
54... Kf7 {[%clk 0:00:06]} 55. a4 {[%clk 0:00:49]} 55... Rd7 {[%clk 0:00:04.9]}
56. a5 {[%clk 0:00:49.5]} 56... Rb7 {[%clk 0:00:04.2]} 57. b6 {[%clk 0:00:47.3]}
57... axb6 {[%clk 0:00:03.2]} 58. Rxb6 {[%clk 0:00:48.2]} 58... Ra7 {[%clk
0:00:03.4]} 59. a6 {[%clk 0:00:48.8]} 59... Kg8 {[%clk 0:00:01.8]} 60. Rb8+
{[%clk 0:00:49]} 60... Kh7 {[%clk 0:00:01.3]} 61. Rb7+ {[%clk 0:00:49.9]} 61...
Kh6 {[%clk 0:00:01.6]} 62. Rxa7 {[%clk 0:00:49.1]} 62... g5 {[%clk 0:00:02]} 63.
fxg5+ {[%clk 0:00:50]} 63... Kg6 {[%clk 0:00:02.8]} 64. Rg7+ {[%clk 0:00:49.2]}
64... Kxg7 {[%clk 0:00:02.6]} 65. a7 {[%clk 0:00:50.1]} 65... Kf7 {[%clk
0:00:02.7]} 66. a8=Q {[%clk 0:00:50.3]} 66... Ke6 {[%clk 0:00:03.6]} 67. Qf3
{[%clk 0:00:50.2]} 67... Ke5 {[%clk 0:00:03.6]} 68. g6 {[%clk 0:00:49.9]} 1-0